[Event "Titled Tuesday Blitz June 13 Late 2023"]
[White "marik_spb"]
[Black "Fisher_TheGalactic"]
[WhiteElo "2474"]
[BlackElo "2688"]
[Result "1-0"]
[Round "7"]
[TimeControl "180+2"]
[Date "2023.06.13"]
[WhiteClock "0:00:04"]
[BlackClock "0:00:00"]
[Board "73"]

1. d4 {[%clk 0:02:59]}  d5 {[%clk 0:02:59]} 2. c4 {[%clk 0:02:58]}  e6 {[%clk 0:02:59]} 3. Nf3 {[%clk 0:02:58]}  Nf6 {[%clk 0:02:59]} 4. g3 {[%clk 0:02:59]}  Be7 {[%clk 0:02:59]} 5. Bg2 {[%clk 0:02:59]}  O-O {[%clk 0:02:59]} 6. O-O {[%clk 0:02:59]}  c6 {[%clk 0:02:59]} 7. Nbd2 {[%clk 0:02:49]}  Nbd7 {[%clk 0:02:57]} 8. Qc2 {[%clk 0:02:49]}  b6 {[%clk 0:02:55]} 9. e4 {[%clk 0:02:48]}  dxc4 {[%clk 0:02:53]} 10. Nxc4 {[%clk 0:02:46]}  Ba6 {[%clk 0:02:51]} 11. Nfe5 {[%clk 0:02:30]}  Nxe5 {[%clk 0:02:49]} 12. dxe5 {[%clk 0:02:30]}  Nd7 {[%clk 0:02:49]} 13. f4 {[%clk 0:01:59]}  Nxe5 {[%clk 0:01:56]} 14. Nxe5 {[%clk 0:01:46]}  Bxf1 {[%clk 0:01:54]} 15. Kxf1 {[%clk 0:01:37]}  c5 {[%clk 0:01:53]} 16. Be3 {[%clk 0:01:36]}  Bf6 {[%clk 0:01:45]} 17. Rd1 {[%clk 0:01:34]}  Qc7 {[%clk 0:01:45]} 18. Ng4 {[%clk 0:01:32]}  Rad8 {[%clk 0:01:44]} 19. Nxf6+ {[%clk 0:01:32]}  gxf6 {[%clk 0:01:44]} 20. Bd2 {[%clk 0:01:24]}  Qd7 {[%clk 0:01:42]} 21. Bf3 {[%clk 0:01:06]}  Qb5+ {[%clk 0:01:17]} 22. Be2 {[%clk 0:01:06]}  Qc6 {[%clk 0:01:17]} 23. Bc3 {[%clk 0:01:03]}  f5 {[%clk 0:01:16]} 24. Rxd8 {[%clk 0:00:52]}  Rxd8 {[%clk 0:01:15]} 25. Bf3 {[%clk 0:00:52]}  Qb5+ {[%clk 0:01:07]} 26. Kf2 {[%clk 0:00:49]}  c4 {[%clk 0:00:58]} 27. exf5 {[%clk 0:00:48]}  exf5 {[%clk 0:00:58]} 28. Qe2 {[%clk 0:00:39]}  Re8 {[%clk 0:00:57]} 29. Qd2 {[%clk 0:00:35]}  Qc5+ {[%clk 0:00:57]} 30. Qd4 {[%clk 0:00:31]}  Qxd4+ {[%clk 0:00:54]} 31. Bxd4 {[%clk 0:00:32]}  Rc8 {[%clk 0:00:54]} 32. Ke3 {[%clk 0:00:25]}  Kf8 {[%clk 0:00:50]} 33. Bg2 {[%clk 0:00:22]}  Ke7 {[%clk 0:00:50]} 34. Bc3 {[%clk 0:00:20]}  Rd8 {[%clk 0:00:49]} 35. Bf1 {[%clk 0:00:18]}  b5 {[%clk 0:00:49]} 36. Be2 {[%clk 0:00:15]}  Ke6 {[%clk 0:00:48]} 37. a3 {[%clk 0:00:15]}  Rd7 {[%clk 0:00:41]} 38. Bf1 {[%clk 0:00:15]}  Kd5 {[%clk 0:00:38]} 39. Bg2+ {[%clk 0:00:15]}  Kc5 {[%clk 0:00:38]} 40. Bb4+ {[%clk 0:00:15]}  Kb6 {[%clk 0:00:39]} 41. Bh3 {[%clk 0:00:15]}  Rd3+ {[%clk 0:00:33]} 42. Ke2 {[%clk 0:00:15]}  Rd5 {[%clk 0:00:28]} 43. Bg2 {[%clk 0:00:15]}  Rd7 {[%clk 0:00:24]} 44. Bh3 {[%clk 0:00:14]}  Rd5 {[%clk 0:00:24]} 45. Bc3 {[%clk 0:00:14]}  a5 {[%clk 0:00:11]} 46. Be5 {[%clk 0:00:12]}  f6 {[%clk 0:00:11]} 47. Bxf6 {[%clk 0:00:12]}  Rd6 {[%clk 0:00:12]} 48. Be5 {[%clk 0:00:12]}  Rh6 {[%clk 0:00:11]} 49. Bxf5 {[%clk 0:00:11]}  Rxh2+ {[%clk 0:00:11]} 50. Ke3 {[%clk 0:00:10]}  b4 {[%clk 0:00:10]} 51. axb4 {[%clk 0:00:11]}  axb4 {[%clk 0:00:11]} 52. g4 {[%clk 0:00:11]}  Kc5 {[%clk 0:00:08]} 53. g5 {[%clk 0:00:10]}  Rh1 {[%clk 0:00:04]} 54. Bd4+ {[%clk 0:00:08]}  Kd6 {[%clk 0:00:02]} 55. Be5+ {[%clk 0:00:07]}  Kc5 {[%clk 0:00:02]} 56. Be4 {[%clk 0:00:07]}  Rh3+ {[%clk 0:00:01]} 57. Kf2 {[%clk 0:00:04]}  Rh2+ {[%clk 0:00:02]} 58. Kf3 {[%clk 0:00:04]}  Rh3+ {[%clk 0:00:02]} 59. Kg4 {[%clk 0:00:04]}  Rh2 {[%clk 0:00:02]} 60. f5 {[%clk 0:00:04]}  Re2 {[%clk 0:00:02]} 61. Kf3 {[%clk 0:00:04]}  Re1 {[%clk 0:00:02]} 62. f6 {[%clk 0:00:04]}  c3 {[%clk 0:00:01]} 63. bxc3 {[%clk 0:00:04]}  b3 {[%clk 0:00:00]} 64. c4 {[%clk 0:00:04]} 1-0


[Site "https://www.chess.com"]

[Event "Titled Tuesday Blitz June 13 Late 2023"]
[White "Bettalli, Francesco"]
[Black "Vlassov, Nikolai"]
[WhiteFideId "2816453"]
[BlackFideId "4103360"]
[WhiteElo "2216"]
[BlackElo "2324"]
[Result "0-1"]
[Round "7"]
[TimeControl "180+2"]
[Date "2023.06.13"]
[WhiteClock "0:00:13"]
[BlackClock "0:00:42"]
[Board "76"]

1. d4 {[%clk 0:02:53]}  Nf6 {[%clk 0:02:59]} 2. Nc3 {[%clk 0:02:54]}  d5 {[%clk 0:02:59]} 3. Bf4 {[%clk 0:02:53]}  c6 {[%clk 0:02:59]} 4. e3 {[%clk 0:02:51]}  Qb6 {[%clk 0:02:49]} 5. Na4 {[%clk 0:02:44]}  Qa5+ {[%clk 0:02:48]} 6. c3 {[%clk 0:02:43]}  Nbd7 {[%clk 0:02:41]} 7. b4 {[%clk 0:02:40]}  Qd8 {[%clk 0:02:40]} 8. Nf3 {[%clk 0:02:40]}  e6 {[%clk 0:02:35]} 9. Bd3 {[%clk 0:02:36]}  a5 {[%clk 0:02:32]} 10. a3 {[%clk 0:02:36]}  Be7 {[%clk 0:02:30]} 11. O-O {[%clk 0:02:29]}  O-O {[%clk 0:02:29]} 12. Qc2 {[%clk 0:02:22]}  h6 {[%clk 0:02:24]} 13. h3 {[%clk 0:02:19]}  b6 {[%clk 0:02:24]} 14. Ne5 {[%clk 0:02:16]}  Nxe5 {[%clk 0:02:21]} 15. Bxe5 {[%clk 0:02:17]}  Ba6 {[%clk 0:02:13]} 16. Bxa6 {[%clk 0:02:06]}  Rxa6 {[%clk 0:02:13]} 17. Rfb1 {[%clk 0:02:05]}  Nd7 {[%clk 0:02:00]} 18. b5 {[%clk 0:02:00]}  cxb5 {[%clk 0:01:55]} 19. Rxb5 {[%clk 0:02:00]}  Nxe5 {[%clk 0:01:55]} 20. dxe5 {[%clk 0:02:01]}  Qc7 {[%clk 0:01:52]} 21. f4 {[%clk 0:01:55]}  f6 {[%clk 0:01:47]} 22. exf6 {[%clk 0:01:45]}  Bxf6 {[%clk 0:01:46]} 23. Rab1 {[%clk 0:01:45]}  Rc8 {[%clk 0:01:40]} 24. Rxb6 {[%clk 0:01:32]}  Rxb6 {[%clk 0:01:37]} 25. Rxb6 {[%clk 0:01:33]}  e5 {[%clk 0:01:31]} 26. Qb3 {[%clk 0:01:24]}  exf4 {[%clk 0:01:23]} 27. Qxd5+ {[%clk 0:01:23]}  Kh8 {[%clk 0:01:23]} 28. exf4 {[%clk 0:01:21]}  Qxf4 {[%clk 0:01:20]} 29. c4 {[%clk 0:01:04]}  Rd8 {[%clk 0:01:08]} 30. Rxf6 {[%clk 0:00:37]}  Qxf6 {[%clk 0:01:01]} 31. Qh5 {[%clk 0:00:19]}  Qd4+ {[%clk 0:00:53]} 32. Kh2 {[%clk 0:00:18]}  Qxc4 {[%clk 0:00:50]} 33. Nb6 {[%clk 0:00:19]}  Qc7+ {[%clk 0:00:45]} 34. Kh1 {[%clk 0:00:16]}  Qxb6 {[%clk 0:00:44]} 35. Qg6 {[%clk 0:00:13]}  Qxg6 {[%clk 0:00:42]} 0-1


[Site "https://www.chess.com"]

[Event "Titled Tuesday Blitz June 13 Late 2023"]
[White "Papayan, Oleg"]
[Black "Hajiyev, Kanan"]
[WhiteFideId "4193911"]
[BlackFideId "13404148"]
[WhiteElo "2167"]
[BlackElo "2115"]
[Result "1-0"]
[Round "7"]
[TimeControl "180+2"]
[Date "2023.06.13"]
[WhiteClock "0:00:03"]
[BlackClock "0:00:09"]
[Board "77"]

1. e4 {[%clk 0:02:56]}  c6 {[%clk 0:02:58]} 2. Nc3 {[%clk 0:02:56]}  d5 {[%clk 0:02:59]} 3. Nf3 {[%clk 0:02:57]}  a6 {[%clk 0:03:00]} 4. d4 {[%clk 0:02:56]}  Bg4 {[%clk 0:03:00]} 5. h3 {[%clk 0:02:53]}  Bh5 {[%clk 0:03:00]} 6. Be2 {[%clk 0:02:43]}  e6 {[%clk 0:02:59]} 7. O-O {[%clk 0:02:41]}  Nf6 {[%clk 0:03:00]} 8. e5 {[%clk 0:02:41]}  Nfd7 {[%clk 0:02:59]} 9. Bg5 {[%clk 0:02:29]}  Qc7 {[%clk 0:02:59]} 10. Nb1 {[%clk 0:02:24]}  c5 {[%clk 0:02:58]} 11. c3 {[%clk 0:02:24]}  Nc6 {[%clk 0:02:59]} 12. Nbd2 {[%clk 0:02:23]}  h6 {[%clk 0:02:51]} 13. Be3 {[%clk 0:02:04]}  cxd4 {[%clk 0:02:47]} 14. cxd4 {[%clk 0:02:03]}  Be7 {[%clk 0:02:47]} 15. Rc1 {[%clk 0:02:01]}  O-O {[%clk 0:02:46]} 16. Nb3 {[%clk 0:01:56]}  Qb6 {[%clk 0:02:38]} 17. Nh2 {[%clk 0:01:31]}  Bxe2 {[%clk 0:02:35]} 18. Qxe2 {[%clk 0:01:32]}  a5 {[%clk 0:02:35]} 19. Ng4 {[%clk 0:01:04]}  a4 {[%clk 0:02:20]} 20. Nc5 {[%clk 0:01:03]}  Nxc5 {[%clk 0:02:17]} 21. dxc5 {[%clk 0:01:04]}  Qc7 {[%clk 0:02:14]} 22. Nxh6+ {[%clk 0:00:27]}  gxh6 {[%clk 0:02:07]} 23. Bxh6 {[%clk 0:00:28]}  Qxe5 {[%clk 0:02:06]} 24. Qg4+ {[%clk 0:00:24]}  Kh7 {[%clk 0:02:07]} 25. Bxf8 {[%clk 0:00:23]}  Rxf8 {[%clk 0:02:06]} 26. Rc3 {[%clk 0:00:17]}  Rg8 {[%clk 0:02:01]} 27. Qxa4 {[%clk 0:00:16]}  Qe4 {[%clk 0:01:58]} 28. Qxe4+ {[%clk 0:00:13]}  dxe4 {[%clk 0:01:59]} 29. Rd1 {[%clk 0:00:10]}  Bf6 {[%clk 0:01:54]} 30. Rc4 {[%clk 0:00:06]}  Bxb2 {[%clk 0:01:39]} 31. Rxe4 {[%clk 0:00:07]}  Kg7 {[%clk 0:01:19]} 32. Rg4+ {[%clk 0:00:06]}  Kf8 {[%clk 0:01:18]} 33. Rxg8+ {[%clk 0:00:07]}  Kxg8 {[%clk 0:01:19]} 34. Rd7 {[%clk 0:00:08]}  Bd4 {[%clk 0:01:15]} 35. Rxb7 {[%clk 0:00:07]}  e5 {[%clk 0:01:14]} 36. Rc7 {[%clk 0:00:04]}  Na5 {[%clk 0:01:14]} 37. c6 {[%clk 0:00:03]}  Kf8 {[%clk 0:01:15]} 38. Rc8+ {[%clk 0:00:01]}  Ke7 {[%clk 0:01:15]} 39. c7 {[%clk 0:00:02]}  Bb6 {[%clk 0:01:08]} 40. Rf8 {[%clk 0:00:01]}  Bxc7 {[%clk 0:01:07]} 41. Ra8 {[%clk 0:00:01]}  Nc6 {[%clk 0:01:03]} 42. a4 {[%clk 0:00:02]}  Kd6 {[%clk 0:01:03]} 43. h4 {[%clk 0:00:02]}  f5 {[%clk 0:01:04]} 44. h5 {[%clk 0:00:02]}  Nd8 {[%clk 0:00:42]} 45. h6 {[%clk 0:00:03]}  Nf7 {[%clk 0:00:41]} 46. h7 {[%clk 0:00:04]}  Kc5 {[%clk 0:00:37]} 47. Ra7 {[%clk 0:00:03]}  Kb6 {[%clk 0:00:34]} 48. Ra8 {[%clk 0:00:03]}  e4 {[%clk 0:00:09]} 49. Rf8 {[%clk 0:00:03]} 1-0


[Site "https://www.chess.com"]

[Event "Titled Tuesday Blitz June 13 Late 2023"]
[White "Ammar, Sedrani"]
[Black "Moral Garcia, Serafin"]
[WhiteFideId "9312331"]
[BlackFideId "2201925"]
[WhiteElo "2115"]
[BlackElo "2274"]
[Result "0-1"]
[Round "7"]
[TimeControl "180+2"]
[Date "2023.06.13"]
[WhiteClock "0:01:11"]
[BlackClock "0:00:48"]
[Board "78"]

1. e4 {[%clk 0:02:59]}  c5 {[%clk 0:02:59]} 2. Nf3 {[%clk 0:02:58]}  e6 {[%clk 0:02:59]} 3. d4 {[%clk 0:02:57]}  cxd4 {[%clk 0:03:00]} 4. Nxd4 {[%clk 0:02:57]}  Nc6 {[%clk 0:03:00]} 5. Nc3 {[%clk 0:02:57]}  Qc7 {[%clk 0:02:58]} 6. Be3 {[%clk 0:02:49]}  a6 {[%clk 0:02:53]} 7. Be2 {[%clk 0:02:48]}  Nf6 {[%clk 0:02:48]} 8. O-O {[%clk 0:02:48]}  Bb4 {[%clk 0:02:48]} 9. f3 {[%clk 0:02:45]}  d5 {[%clk 0:02:42]} 10. exd5 {[%clk 0:02:44]}  exd5 {[%clk 0:02:41]} 11. Nb3 {[%clk 0:02:39]}  Be6 {[%clk 0:02:30]} 12. Nc5 {[%clk 0:02:31]}  d4 {[%clk 0:02:22]} 13. Nxe6 {[%clk 0:02:24]}  fxe6 {[%clk 0:02:21]} 14. a3 {[%clk 0:02:09]}  Bxc3 {[%clk 0:02:16]} 15. bxc3 {[%clk 0:02:08]}  dxe3 {[%clk 0:02:15]} 16. Qc1 {[%clk 0:02:09]}  Qe5 {[%clk 0:02:10]} 17. Rb1 {[%clk 0:02:07]}  Rb8 {[%clk 0:01:59]} 18. Re1 {[%clk 0:02:04]}  Nd5 {[%clk 0:01:56]} 19. Bc4 {[%clk 0:02:03]}  O-O {[%clk 0:01:49]} 20. Bxd5 {[%clk 0:02:02]}  Qxd5 {[%clk 0:01:48]} 21. Qxe3 {[%clk 0:02:02]}  e5 {[%clk 0:01:45]} 22. Rbd1 {[%clk 0:02:01]}  Qa2 {[%clk 0:01:42]} 23. Rd7 {[%clk 0:01:59]}  Qxc2 {[%clk 0:01:38]} 24. Red1 {[%clk 0:01:54]}  Rbd8 {[%clk 0:01:35]} 25. Rxd8 {[%clk 0:01:53]}  Nxd8 {[%clk 0:01:31]} 26. Rd2 {[%clk 0:01:48]}  Qb1+ {[%clk 0:01:29]} 27. Kf2 {[%clk 0:01:48]}  e4 {[%clk 0:01:29]} 28. Qg5 {[%clk 0:01:42]}  Ne6 {[%clk 0:01:24]} 29. Qd5 {[%clk 0:01:40]}  Qb6+ {[%clk 0:01:22]} 30. Kf1 {[%clk 0:01:34]}  exf3 {[%clk 0:01:21]} 31. gxf3 {[%clk 0:01:34]}  Kh8 {[%clk 0:01:15]} 32. Qd6 {[%clk 0:01:32]}  Rxf3+ {[%clk 0:01:07]} 33. Kg2 {[%clk 0:01:29]}  Qxd6 {[%clk 0:01:03]} 34. Rxd6 {[%clk 0:01:28]}  Rf6 {[%clk 0:01:02]} 35. Rd7 {[%clk 0:01:24]}  b5 {[%clk 0:00:58]} 36. Ra7 {[%clk 0:01:24]}  Nf8 {[%clk 0:00:58]} 37. Rc7 {[%clk 0:01:19]}  Kg8 {[%clk 0:00:58]} 38. c4 {[%clk 0:01:19]}  bxc4 {[%clk 0:00:57]} 39. Rxc4 {[%clk 0:01:20]}  Ne6 {[%clk 0:00:57]} 40. a4 {[%clk 0:01:20]}  Kf7 {[%clk 0:00:54]} 41. a5 {[%clk 0:01:19]}  Rf5 {[%clk 0:00:52]} 42. Ra4 {[%clk 0:01:17]}  Nc5 {[%clk 0:00:51]} 43. Rb4 {[%clk 0:01:16]}  Nd7 {[%clk 0:00:48]} 44. Rb7 {[%clk 0:01:15]}  Ke6 {[%clk 0:00:48]} 45. Rc7 {[%clk 0:01:12]}  Rxa5 {[%clk 0:00:48]} 46. Rc6+ {[%clk 0:01:12]}  Ke7 {[%clk 0:00:48]} 47. Rc7 {[%clk 0:01:11]}  Ra2+ {[%clk 0:00:48]} 0-1


[Site "https://www.chess.com"]

[Event "Titled Tuesday Blitz June 13 Late 2023"]
[White "Fantinel, Thibault"]
[Black "Balla, Tamas-Kristof"]
[WhiteFideId "663395"]
[BlackFideId "1208497"]
[WhiteElo "2316"]
[BlackElo "2334"]
[Result "1/2-1/2"]
[Round "7"]
[TimeControl "180+2"]
[Date "2023.06.13"]
[WhiteClock "0:00:08"]
[BlackClock "0:00:11"]
[Board "82"]

1. c4 {[%clk 0:03:00]}  c5 {[%clk 0:03:00]} 2. g3 {[%clk 0:02:59]}  Nc6 {[%clk 0:02:59]} 3. Bg2 {[%clk 0:03:00]}  g6 {[%clk 0:03:00]} 4. Nc3 {[%clk 0:03:00]}  Bg7 {[%clk 0:03:00]} 5. a3 {[%clk 0:03:01]}  a5 {[%clk 0:02:47]} 6. Nf3 {[%clk 0:02:53]}  e6 {[%clk 0:02:44]} 7. h4 {[%clk 0:02:35]}  h6 {[%clk 0:02:31]} 8. d4 {[%clk 0:02:35]}  Nxd4 {[%clk 0:02:21]} 9. Nxd4 {[%clk 0:02:33]}  cxd4 {[%clk 0:02:17]} 10. Nb5 {[%clk 0:02:33]}  d5 {[%clk 0:02:12]} 11. cxd5 {[%clk 0:02:25]}  Nf6 {[%clk 0:01:40]} 12. d6 {[%clk 0:02:07]}  O-O {[%clk 0:01:37]} 13. Qxd4 {[%clk 0:02:02]}  Bd7 {[%clk 0:01:24]} 14. Nc7 {[%clk 0:01:49]}  Rb8 {[%clk 0:01:17]} 15. O-O {[%clk 0:01:45]}  Bc6 {[%clk 0:01:13]} 16. Rd1 {[%clk 0:01:29]}  Nd5 {[%clk 0:01:03]} 17. Qd3 {[%clk 0:00:56]}  Nxc7 {[%clk 0:01:01]} 18. dxc7 {[%clk 0:00:56]}  Qxc7 {[%clk 0:00:59]} 19. Bf4 {[%clk 0:00:56]}  e5 {[%clk 0:00:58]} 20. Be3 {[%clk 0:00:54]}  Bxg2 {[%clk 0:00:40]} 21. Kxg2 {[%clk 0:00:55]}  b5 {[%clk 0:00:37]} 22. Rac1 {[%clk 0:00:48]}  Qb7+ {[%clk 0:00:31]} 23. Qd5 {[%clk 0:00:48]}  Qa6 {[%clk 0:00:29]} 24. Rc6 {[%clk 0:00:44]}  Qb7 {[%clk 0:00:25]} 25. Rb6 {[%clk 0:00:28]}  Qxd5+ {[%clk 0:00:22]} 26. Rxd5 {[%clk 0:00:29]}  Rxb6 {[%clk 0:00:23]} 27. Bxb6 {[%clk 0:00:28]}  Rb8 {[%clk 0:00:24]} 28. Bxa5 {[%clk 0:00:26]}  f5 {[%clk 0:00:20]} 29. Bc3 {[%clk 0:00:25]}  e4 {[%clk 0:00:20]} 30. Bxg7 {[%clk 0:00:21]}  Kxg7 {[%clk 0:00:21]} 31. h5 {[%clk 0:00:21]}  Rb6 {[%clk 0:00:17]} 32. hxg6 {[%clk 0:00:21]}  Kxg6 {[%clk 0:00:18]} 33. b4 {[%clk 0:00:20]}  Kg5 {[%clk 0:00:18]} 34. f3 {[%clk 0:00:16]}  exf3+ {[%clk 0:00:17]} 35. exf3 {[%clk 0:00:17]}  Ra6 {[%clk 0:00:18]} 36. Rd3 {[%clk 0:00:16]}  Rc6 {[%clk 0:00:17]} 37. Kh3 {[%clk 0:00:16]}  Rc1 {[%clk 0:00:17]} 38. Rd5 {[%clk 0:00:15]}  Ra1 {[%clk 0:00:17]} 39. Rxb5 {[%clk 0:00:14]}  Rxa3 {[%clk 0:00:17]} 40. f4+ {[%clk 0:00:15]}  Kg6 {[%clk 0:00:16]} 41. Rb6+ {[%clk 0:00:15]}  Kh5 {[%clk 0:00:15]} 42. Rf6 {[%clk 0:00:15]}  Rxg3+ {[%clk 0:00:12]} 43. Kh2 {[%clk 0:00:06]}  Rb3 {[%clk 0:00:12]} 44. Rxf5+ {[%clk 0:00:07]}  Kg4 {[%clk 0:00:13]} 45. Rb5 {[%clk 0:00:05]}  Kxf4 {[%clk 0:00:12]} 46. Rb8 {[%clk 0:00:04]}  Ke5 {[%clk 0:00:09]} 47. b5 {[%clk 0:00:04]}  Kd6 {[%clk 0:00:10]} 48. b6 {[%clk 0:00:05]}  Kc6 {[%clk 0:00:10]} 49. b7 {[%clk 0:00:05]}  Rxb7 {[%clk 0:00:10]} 50. Rxb7 {[%clk 0:00:05]}  Kxb7 {[%clk 0:00:11]} 51. Kh3 {[%clk 0:00:06]}  h5 {[%clk 0:00:11]} 52. Kh4 {[%clk 0:00:07]}  Kc6 {[%clk 0:00:11]} 53. Kxh5 {[%clk 0:00:08]} 1/2-1/2


[Site "https://www.chess.com"]

[Event "Titled Tuesday Blitz June 13 Late 2023"]
[White "Buchenau, Frank"]
[Black "MKlose11"]
[WhiteFideId "4604350"]
[WhiteElo "2157"]
[BlackElo "2546"]
[Result "0-1"]
[Round "7"]
[TimeControl "180+2"]
[Date "2023.06.13"]
[WhiteClock "0:00:09"]
[BlackClock "0:00:09"]
[Board "84"]

1. e4 {[%clk 0:03:00]}  e6 {[%clk 0:02:57]} 2. d4 {[%clk 0:02:59]}  d5 {[%clk 0:02:58]} 3. Nc3 {[%clk 0:02:53]}  Bb4 {[%clk 0:02:58]} 4. exd5 {[%clk 0:02:50]}  exd5 {[%clk 0:02:57]} 5. Bd3 {[%clk 0:02:49]}  Nc6 {[%clk 0:02:55]} 6. Ne2 {[%clk 0:02:49]}  Nce7 {[%clk 0:02:56]} 7. O-O {[%clk 0:02:48]}  h6 {[%clk 0:02:56]} 8. Bf4 {[%clk 0:02:46]}  Nf6 {[%clk 0:02:56]} 9. Nb5 {[%clk 0:02:39]}  Ba5 {[%clk 0:02:54]} 10. c3 {[%clk 0:02:37]}  O-O {[%clk 0:02:53]} 11. Re1 {[%clk 0:02:34]}  Bf5 {[%clk 0:02:51]} 12. Ng3 {[%clk 0:02:29]}  Bxd3 {[%clk 0:02:50]} 13. Qxd3 {[%clk 0:02:29]}  Ng6 {[%clk 0:02:50]} 14. Be5 {[%clk 0:02:23]}  c6 {[%clk 0:02:46]} 15. Nd6 {[%clk 0:02:20]}  Rb8 {[%clk 0:02:33]} 16. Ngf5 {[%clk 0:01:41]}  Bc7 {[%clk 0:02:27]} 17. Qg3 {[%clk 0:01:38]}  Kh7 {[%clk 0:02:18]} 18. Rad1 {[%clk 0:01:14]}  Ne8 {[%clk 0:02:01]} 19. Nxe8 {[%clk 0:01:08]}  Bxe5 {[%clk 0:01:59]} 20. dxe5 {[%clk 0:01:04]}  Rxe8 {[%clk 0:01:59]} 21. Nd6 {[%clk 0:00:56]}  Re7 {[%clk 0:01:34]} 22. f4 {[%clk 0:00:51]}  Qb6+ {[%clk 0:01:34]} 23. Kh1 {[%clk 0:00:49]}  Rg8 {[%clk 0:01:13]} 24. f5 {[%clk 0:00:47]}  Nh8 {[%clk 0:01:00]} 25. Rd4 {[%clk 0:00:36]}  Qxb2 {[%clk 0:00:52]} 26. Rg4 {[%clk 0:00:34]}  g5 {[%clk 0:00:42]} 27. h4 {[%clk 0:00:29]}  Qd2 {[%clk 0:00:42]} 28. Rd4 {[%clk 0:00:20]}  Qc2 {[%clk 0:00:36]} 29. hxg5 {[%clk 0:00:17]}  Rxg5 {[%clk 0:00:35]} 30. Qh3 {[%clk 0:00:13]}  Qf2 {[%clk 0:00:18]} 31. Rg1 {[%clk 0:00:10]}  Rxe5 {[%clk 0:00:17]} 32. Rh4 {[%clk 0:00:10]}  h5 {[%clk 0:00:08]} 33. Rxh5+ {[%clk 0:00:10]}  Rxh5 {[%clk 0:00:09]} 34. Qxh5+ {[%clk 0:00:10]}  Kg7 {[%clk 0:00:10]} 35. Qg5+ {[%clk 0:00:10]}  Kf8 {[%clk 0:00:11]} 36. Qd8+ {[%clk 0:00:10]}  Kg7 {[%clk 0:00:11]} 37. Ne8+ {[%clk 0:00:09]}  Rxe8 {[%clk 0:00:09]} 38. Qxe8 {[%clk 0:00:09]}  Qh4# {[%clk 0:00:09]} 0-1


[Site "https://www.chess.com"]

[Event "Titled Tuesday Blitz June 13 Late 2023"]
[White "Sreyas Payyappat"]
[Black "Myers, Dominique"]
[WhiteFideId "46674969"]
[BlackFideId "2041715"]
[WhiteElo "2043"]
[BlackElo "1951"]
[Result "1-0"]
[Round "7"]
[TimeControl "180+2"]
[Date "2023.06.13"]
[WhiteClock "0:02:37"]
[BlackClock "0:01:57"]
[Board "86"]

1. e4 {[%clk 0:03:00]}  e5 {[%clk 0:02:58]} 2. Nf3 {[%clk 0:03:00]}  Nc6 {[%clk 0:02:58]} 3. Bc4 {[%clk 0:02:59]}  Nf6 {[%clk 0:02:58]} 4. d4 {[%clk 0:02:59]}  exd4 {[%clk 0:02:58]} 5. e5 {[%clk 0:03:00]}  d5 {[%clk 0:02:58]} 6. Bb5 {[%clk 0:03:00]}  Ne4 {[%clk 0:02:58]} 7. Nxd4 {[%clk 0:03:00]}  Bd7 {[%clk 0:02:57]} 8. Bxc6 {[%clk 0:02:58]}  bxc6 {[%clk 0:02:58]} 9. O-O {[%clk 0:02:59]}  Bc5 {[%clk 0:02:59]} 10. c3 {[%clk 0:02:57]}  O-O {[%clk 0:02:49]} 11. f3 {[%clk 0:02:55]}  Ng5 {[%clk 0:02:49]} 12. f4 {[%clk 0:02:54]}  Ne4 {[%clk 0:02:47]} 13. Nd2 {[%clk 0:02:53]}  Nxd2 {[%clk 0:02:47]} 14. Bxd2 {[%clk 0:02:53]}  Re8 {[%clk 0:02:48]} 15. Kh1 {[%clk 0:02:51]}  f6 {[%clk 0:02:47]} 16. Re1 {[%clk 0:02:47]}  fxe5 {[%clk 0:02:46]} 17. fxe5 {[%clk 0:02:48]}  Bb6 {[%clk 0:02:41]} 18. e6 {[%clk 0:02:43]}  Bxd4 {[%clk 0:02:37]} 19. exd7 {[%clk 0:02:42]}  Rxe1+ {[%clk 0:02:36]} 20. Qxe1 {[%clk 0:02:43]}  Bf6 {[%clk 0:02:37]} 21. Qe6+ {[%clk 0:02:42]}  Kh8 {[%clk 0:02:36]} 22. Re1 {[%clk 0:02:42]}  h6 {[%clk 0:02:32]} 23. Qf7 {[%clk 0:02:38]}  Qg8 {[%clk 0:01:57]} 24. Re8 {[%clk 0:02:37]} 1-0


[Site "https://www.chess.com"]

[Event "Titled Tuesday Blitz June 13 Late 2023"]
[White "Siniauski, Artsiom"]
[Black "Kabilov, Amin"]
[WhiteFideId "13512269"]
[BlackFideId "14700859"]
[WhiteElo "2065"]
[BlackElo "2110"]
[Result "0-1"]
[Round "7"]
[TimeControl "180+2"]
[Date "2023.06.13"]
[WhiteClock "0:00:00"]
[BlackClock "0:00:31"]
[Board "87"]

1. e4 {[%clk 0:03:00]}  c5 {[%clk 0:02:58]} 2. Nf3 {[%clk 0:03:00]}  d6 {[%clk 0:02:57]} 3. d4 {[%clk 0:02:52]}  cxd4 {[%clk 0:02:57]} 4. Qxd4 {[%clk 0:02:53]}  Nf6 {[%clk 0:02:52]} 5. Be2 {[%clk 0:02:50]}  Nc6 {[%clk 0:02:50]} 6. Qe3 {[%clk 0:02:48]}  Nb4 {[%clk 0:02:32]} 7. Na3 {[%clk 0:02:41]}  Bg4 {[%clk 0:02:22]} 8. O-O {[%clk 0:02:35]}  e5 {[%clk 0:02:16]} 9. c3 {[%clk 0:02:03]}  Nc6 {[%clk 0:02:15]} 10. Rd1 {[%clk 0:02:04]}  Be7 {[%clk 0:02:13]} 11. Nc4 {[%clk 0:01:59]}  Bxf3 {[%clk 0:02:07]} 12. Bxf3 {[%clk 0:01:52]}  b5 {[%clk 0:02:07]} 13. Nd2 {[%clk 0:01:47]}  O-O {[%clk 0:02:04]} 14. a4 {[%clk 0:01:39]}  a6 {[%clk 0:02:02]} 15. Nb3 {[%clk 0:01:26]}  Qc7 {[%clk 0:01:56]} 16. Bd2 {[%clk 0:01:21]}  Nd7 {[%clk 0:01:45]} 17. Be1 {[%clk 0:01:07]}  Nb6 {[%clk 0:01:44]} 18. Be2 {[%clk 0:00:58]}  Nxa4 {[%clk 0:01:38]} 19. c4 {[%clk 0:00:57]}  Nxb2 {[%clk 0:01:31]} 20. Rdc1 {[%clk 0:00:45]}  Nxc4 {[%clk 0:01:29]} 21. Bxc4 {[%clk 0:00:45]}  bxc4 {[%clk 0:01:30]} 22. Rxc4 {[%clk 0:00:46]}  Qb7 {[%clk 0:01:29]} 23. Rac1 {[%clk 0:00:43]}  Rac8 {[%clk 0:01:14]} 24. Rxc6 {[%clk 0:00:31]}  Rxc6 {[%clk 0:01:13]} 25. Na5 {[%clk 0:00:31]}  Rxc1 {[%clk 0:01:08]} 26. Nxb7 {[%clk 0:00:30]}  Bg5 {[%clk 0:01:05]} 27. Qe2 {[%clk 0:00:25]}  Rb8 {[%clk 0:01:03]} 28. Nxd6 {[%clk 0:00:13]}  Rbb1 {[%clk 0:01:01]} 29. Kf1 {[%clk 0:00:14]}  Be7 {[%clk 0:00:56]} 30. Nc4 {[%clk 0:00:13]}  Bb4 {[%clk 0:00:52]} 31. Nd2 {[%clk 0:00:13]}  Rb2 {[%clk 0:00:35]} 32. Qxa6 {[%clk 0:00:09]}  g6 {[%clk 0:00:31]} 33. Qa8+ {[%clk 0:00:08]}  Kg7 {[%clk 0:00:31]} 34. Qb8 {[%clk 0:00:09]}  Rxe1+ {[%clk 0:00:30]} 35. Kxe1 {[%clk 0:00:05]}  Bxd2+ {[%clk 0:00:30]} 36. Kd1 {[%clk 0:00:06]}  Rxb8 {[%clk 0:00:31]} 37. Kxd2 {[%clk 0:00:00]}  Rd8+ {[%clk 0:00:31]} 0-1


[Site "https://www.chess.com"]